[Event "TUR-chT Superleague 2018"]
[Site "Ankara"]
[Date "2018.07.30"]
[Round "7"]
[White "Ozbek, Busra"]
[Black "Ozbay, Ece"]
[Result "1/2-1/2"]
[ECO "D04"]
[WhiteElo "1848"]
[BlackElo "2140"]
[Annotator "NA"]
[PlyCount "84"]
[EventDate "2018.07.25"]
[EventType "team-tourn"]
[EventCountry "TUR"]
[SourceTitle "playchess.com"]
[Source "ChessBase"]
[SourceQuality "1"]
[TimeControl "40/5400+30:1800+30"]

1. d4 d5 2. Nf3 Nf6 3. e3 c5 4. b3 cxd4 5. exd4 Nc6 6. Bb2 Bg4 7. Be2 e6 8. Nbd2 Bd6 9. O-O Qc7 10. h3 Bf5 11. a3 O-O 12. c4 Rad8 13. c5 Bf4 14. b4 e5 15. Nxe5 Nxe5 16. dxe5 Nd7 {[%emt 1:05:30]} 17. Nf3 {[%emt 1:02:30]} Be4 {[%emt 0:01:30]} 18. Nd4 {[%emt 0:08:30]} Nxe5 {[%emt 0:03:30]} 19. g3 {[%emt 0:06:30]} Bxg3 {[%emt 0:02:30]} 20. fxg3 {[%emt 0:04:14]} Nd3 {[%emt 0:01:30]} 21. Kh2 {[%emt 0:02:36]} Nxb2 {[%emt 0:00:00]} 22. Qb3 {[%emt 0:01:19]} Nc4 {[%emt 0:02:00]} 23. Bxc4 {[%emt 0:01:50]} dxc4 {[%emt 0:00:00]} 24. Qxc4 {[%emt 0:00:34]} Qe5 {[%emt 0:03:00]} 25. Rad1 {[%emt 0:01:14]} Rd5 {[%emt 0:07:21]} 26. Rf2 {[%emt 0:06:21]} h6 {[%emt 0:06:50]} 27. Rdd2 {[%emt 0:02:36]} Rfd8 {[%emt 0:03:17]} 28. Nb3 {[%emt 0:00:54]} Kh8 {[%emt 0:00:40]} 29. Rxd5 {[%emt 0:03:21]} Bxd5 {[%emt 0:01:15]} 30. Qd3 {[%emt 0:00:59]} Qe1 {[%emt 0:01:04]} 31. Rf1 {[%emt 0:00:41]} Qe6 {[%emt 0:03:29]} 32. Rd1 {[%emt 0:00:42]} Rd7 {[%emt 0:00:40]} 33. Nd4 {[%emt 0:00:25]} Qe5 {[%emt 0:01:31]} 34. Qf5 {[%emt 0:00:41]} Qe3 {[%emt 0:00:32]} 35. Rd3 {[%emt 0:00:40]} Qe1 {[%emt 0:00:46]} 36. Nf3 {[%emt 0:00:39]} Qe2+ {[%emt 0:00:45]} 37. Kg1 {[%emt 0:00:30]} Bxf3 {[%emt 0:00:00]} 38. Rxf3 {[%emt 0:00:03]} Qe1+ {[%emt 0:01:00]} 39. Kg2 {[%emt 0:00:47]} Re7 {[%emt 0:00:44]} 40. Rf2 {[%emt 0:00:00]} Qa1 {[%emt 0:01:06]} 41. Qd3 {[%emt 0:02:54]} Qe5 {[%emt 0:11:09]} 42. Qc4 {[%emt 0:03:30]} f5 {[%emt 0:08:36]} 1/2-1/2

[Event "TUR-chT Superleague 2018"]
[Site "Ankara"]
[Date "2018.07.30"]
[Round "7"]
[White "Onur, Cigdem"]
[Black "Erece, Ece Alkim"]
[Result "1-0"]
[ECO "B07"]
[WhiteElo "1750"]
[BlackElo "1788"]
[Annotator "NA"]
[PlyCount "45"]
[EventDate "2018.07.25"]
[EventType "team-tourn"]
[EventCountry "TUR"]
[SourceTitle "playchess.com"]
[Source "ChessBase"]
[SourceQuality "1"]
[TimeControl "40/5400+30:1800+30"]

1. d4 Nf6 2. Bf4 g6 3. Nc3 Bg7 4. e4 d6 5. Qd2 O-O 6. f3 Re8 7. O-O-O Na6 8. Bh6 Bh8 9. h4 c6 10. h5 Be6 11. Qg5 Qb6 12. g4 Nb4 13. Kb1 {[%emt 1:00:30]} Nd7 {[%emt 1:03:00]} 14. Nge2 {[%emt 0:05:30]} d5 {[%emt 0:05:30]} 15. Qh4 {[%emt 0:04:30]} f6 {[%emt 0:05:30]} 16. hxg6 {[%emt 0:06:30]} hxg6 {[%emt 0:00:30]} 17. Nf4 {[%emt 0:00:30]} Kf7 {[%emt 0:04:35]} 18. Nxg6 {[%emt 0:02:57]} Rg8 {[%emt 0:00:48]} 19. Nxh8+ {[%emt 0:04:48]} Ke8 {[%emt 0:00:49]} 20. Qh5+ {[%emt 0:03:01]} Kd8 {[%emt 0:00:07]} 21. Nf7+ {[%emt 0:00:57]} Kc8 {[%emt 0:00:18]} 22. Bf4 {[%emt 0:00:54]} Rf8 {[%emt 0:01:27]} 23. Nh6 {[%emt 0:01:18]} 1-0

[Event "TUR-chT Superleague 2018"]
[Site "Ankara"]
[Date "2018.07.30"]
[Round "7"]
[White "Yorgun, Yaren Naz"]
[Black "Sade, Defne"]
[Result "1-0"]
[ECO "C54"]
[WhiteElo "1737"]
[BlackElo "1954"]
[Annotator "NA"]
[PlyCount "38"]
[EventDate "2018.07.25"]
[EventType "team-tourn"]
[EventCountry "TUR"]
[SourceTitle "playchess.com"]
[Source "ChessBase"]
[SourceQuality "1"]
[TimeControl "40/5400+30:1800+30"]

1. e4 e5 2. Nf3 Nc6 3. Bc4 Bc5 4. c3 Nf6 5. d4 exd4 6. e5 d5 7. Bb5 Ne4 8. cxd4 Bb6 9. Nc3 O-O 10. Be3 Bg4 11. h3 Be6 12. O-O h6 13. Bd3 Nxc3 14. bxc3 f5 15. Qc1 Qe7 16. Nh2 Qf7 17. f4 Ne7 18. Be2 Kh8 19. Kh1 Rac8 1-0

[Event "TUR-chT Superleague 2018"]
[Site "Ankara"]
[Date "2018.07.30"]
[Round "7"]
[White "Incecik, Seyma Zeynep"]
[Black "Keskin, Elif"]
[Result "1-0"]
[ECO "B76"]
[WhiteElo "1673"]
[BlackElo "1719"]
[Annotator "NA"]
[PlyCount "159"]
[EventDate "2018.07.25"]
[EventType "team-tourn"]
[EventCountry "TUR"]
[SourceTitle "playchess.com"]
[Source "ChessBase"]
[SourceQuality "1"]
[TimeControl "40/5400+30:1800+30"]

1. e4 c5 2. Nf3 d6 3. d4 cxd4 4. Nxd4 Nf6 5. Nc3 g6 6. Be3 Bg7 7. f3 O-O 8. Qd2 Nc6 9. Be2 Bd7 10. g4 Rc8 11. h4 h5 12. O-O-O Ne5 13. Bh6 Kh7 14. Bxg7 Kxg7 15. g5 Ne8 16. f4 Nc4 {[%emt 0:44:30]} 17. Bxc4 {[%emt 1:15:30]} Rxc4 {[%emt 0:00:00]} 18. e5 {[%emt 0:02:30]} Bg4 {[%emt 0:08:00]} 19. Rde1 {[%emt 0:01:45]} Qb6 {[%emt 0:07:30]} 20. Nb3 {[%emt 0:01:48]} e6 {[%emt 0:06:30]} 21. Rhf1 {[%emt 0:07:03]} d5 {[%emt 0:03:30]} 22. Ne2 {[%emt 0:03:26]} Kh7 {[%emt 0:02:30]} 23. Kb1 {[%emt 0:01:42]} Ng7 {[%emt 0:01:30]} 24. Qa5 {[%emt 0:03:05]} Qxa5 {[%emt 0:04:30]} 25. Nxa5 {[%emt 0:00:04]} Rc7 {[%emt 0:01:30]} 26. Nd4 {[%emt 0:00:18]} Nf5 {[%emt 0:02:30]} 27. Nxf5 {[%emt 0:01:35]} Bxf5 {[%emt 0:00:30]} 28. Rf2 {[%emt 0:02:55]} Rfc8 {[%emt 0:00:30]} 29. Rc1 {[%emt 0:00:39]} d4 {[%emt 0:04:49]} 30. Rd2 {[%emt 0:00:24]} d3 {[%emt 0:03:04]} 31. c3 {[%emt 0:00:21]} Rd7 {[%emt 0:02:41]} 32. Nb3 {[%emt 0:00:42]} Rcd8 {[%emt 0:01:59]} 33. Nd4 {[%emt 0:00:34]} a6 {[%emt 0:00:41]} 34. Nxf5 {[%emt 0:01:08]} gxf5 {[%emt 0:00:17]} 35. Rf1 {[%emt 0:00:01]} Kg6 {[%emt 0:03:11]} 36. Kc1 {[%emt 0:01:20]} b5 {[%emt 0:00:20]} 37. Rf3 {[%emt 0:00:34]} Kh7 {[%emt 0:01:06]} 38. Rd1 {[%emt 0:00:47]} a5 {[%emt 0:02:57]} 39. Kd2 {[%emt 0:00:20]} b4 {[%emt 0:00:21]} 40. cxb4 {[%emt 0:00:00]} axb4 {[%emt 0:00:34]} 41. Re1 {[%emt 0:15:41]} Ra7 {[%emt 0:04:30]} 42. Rxd3 {[%emt 0:04:13]} Rxd3+ {[%emt 0:00:30]} 43. Kxd3 {[%emt 0:00:30]} Rxa2 {[%emt 0:00:00]} 44. Kc2 {[%emt 0:00:59]} Ra5 {[%emt 0:04:00]} 45. Rd1 {[%emt 0:00:44]} Rb5 {[%emt 0:03:30]} 46. Kb3 {[%emt 0:00:10]} Rb8 {[%emt 0:01:30]} 47. Ka4 {[%emt 0:02:33]} Kg6 {[%emt 0:01:30]} 48. b3 {[%emt 0:02:00]} Rb7 {[%emt 0:01:30]} 49. Ka5 {[%emt 0:01:48]} Rb8 {[%emt 0:00:30]} 50. Rf1 {[%emt 0:02:29]} Rb7 {[%emt 0:01:30]} 51. Rd1 {[%emt 0:00:49]} Rb8 {[%emt 0:00:30]} 52. Rd4 {[%emt 0:00:31]} Ra8+ {[%emt 0:01:30]} 53. Kxb4 {[%emt 0:00:30]} Ra1 {[%emt 0:00:00]} 54. Rd2 {[%emt 0:00:17]} Rh1 {[%emt 0:00:00]} 55. Rf2 {[%emt 0:00:24]} Rxh4 {[%emt 0:00:30]} 56. Kc5 {[%emt 0:00:06]} Rh1 {[%emt 0:00:30]} 57. b4 {[%emt 0:00:06]} h4 {[%emt 0:01:55]} 58. Rb2 {[%emt 0:01:18]} h3 {[%emt 0:00:47]} 59. Kd6 {[%emt 0:00:31]} h2 {[%emt 0:01:02]} 60. Ke7 {[%emt 0:00:04]} Rc1 {[%emt 0:00:49]} 61. Rxh2 {[%emt 0:00:09]} Rb1 {[%emt 0:00:29]} 62. Rh6+ {[%emt 0:01:28]} Kg7 {[%emt 0:00:05]} 63. Rf6 {[%emt 0:00:00]} Rxb4 {[%emt 0:01:51]} 64. Rxf7+ {[%emt 0:00:02]} Kg8 {[%emt 0:00:16]} 65. g6 {[%emt 0:02:41]} Rxf4 {[%emt 0:04:33]} 66. Kxe6 {[%emt 0:00:38]} Rg4 {[%emt 0:02:13]} 67. Kxf5 {[%emt 0:00:28]} Rg1 {[%emt 0:00:11]} 68. Kf6 {[%emt 0:01:14]} Rf1+ {[%emt 0:00:28]} 69. Ke7 {[%emt 0:00:37]} Rg1 {[%emt 0:00:11]} 70. g7 {[%emt 0:00:13]} Ra1 {[%emt 0:00:22]} 71. e6 {[%emt 0:00:23]} Rb1 {[%emt 0:00:36]} 72. Kd8 {[%emt 0:02:21]} Rb8+ {[%emt 0:00:45]} 73. Kc7 {[%emt 0:00:29]} Rb1 {[%emt 0:01:51]} 74. Rd7 {[%emt 0:00:21]} Rc1+ {[%emt 0:00:52]} 75. Kd8 {[%emt 0:00:30]} Ra1 {[%emt 0:01:02]} 76. e7 {[%emt 0:00:12]} Ra8+ {[%emt 0:00:42]} 77. Kc7 {[%emt 0:00:03]} Ra7+ {[%emt 0:00:41]} 78. Kd6 {[%emt 0:00:39]} Ra6+ {[%emt 0:00:11]} 79. Ke5 {[%emt 0:00:00]} Ra5+ {[%emt 0:00:05]} 80. Rd5 {[%emt 0:00:00]} 1-0

[Event "TUR-chT Superleague 2018"]
[Site "Ankara"]
[Date "2018.07.30"]
[Round "7"]
[White "Demirel, Ahmet"]
[Black "Yurtseven, Melih"]
[Result "0-1"]
[ECO "C00"]
[WhiteElo "1321"]
[BlackElo "2404"]
[Annotator "NA"]
[PlyCount "108"]
[EventDate "2018.07.25"]
[EventType "team-tourn"]
[EventCountry "TUR"]
[SourceTitle "playchess.com"]
[Source "ChessBase"]
[SourceQuality "1"]
[TimeControl "40/5400+30:1800+30"]

1. Nf3 e6 2. g3 d5 3. Bg2 Nf6 4. O-O Be7 5. d3 c5 6. Nbd2 Nc6 7. c3 b6 8. e4 O-O 9. Qc2 Qc7 10. Re1 dxe4 11. dxe4 Ba6 12. Bf1 Bb7 13. Bg2 Nd7 14. Nc4 b5 15. Ne3 a6 16. a4 Qb6 17. b3 Rac8 18. Nd1 Rfd8 19. Nb2 Bf6 20. Bf4 Nde5 21. Nxe5 Nxe5 22. Bxe5 Bxe5 23. Nd3 Bb8 24. e5 Bxg2 25. Kxg2 c4 26. Nf4 cxb3 27. Qxb3 Qc6+ 28. Kg1 Qxc3 29. Qxc3 Rxc3 30. axb5 axb5 31. Ne2 Rc4 32. f4 Bc7 33. Rec1 Bb6+ 34. Kf1 h5 35. Rab1 Be3 36. Rc3 Bd2 {[%emt 0:49:30]} 37. Rcb3 {[%emt 1:06:30]} b4 {[%emt 0:00:30]} 38. Ng1 {[%emt 0:02:30]} Bc3 {[%emt 0:00:30]} 39. Ne2 {[%emt 0:00:30]} Kh7 {[%emt 0:00:30]} 40. Nxc3 {[%emt 0:00:00]} bxc3 {[%emt 0:00:30]} 41. Rc1 {[%emt 0:05:00]} c2 {[%emt 0:00:30]} 42. Ke2 {[%emt 0:00:30]} Kg6 {[%emt 0:00:30]} 43. Rd3 {[%emt 0:00:30]} Rdc8 {[%emt 0:00:30]} 44. Kd2 {[%emt 0:01:30]} Kf5 {[%emt 0:00:30]} 45. Ke3 {[%emt 0:00:30]} Rc3 {[%emt 0:00:30]} 46. Rxc3 {[%emt 0:01:30]} Rxc3+ {[%emt 0:00:30]} 47. Kd2 {[%emt 0:00:00]} Rc7 {[%emt 0:00:00]} 48. h3 {[%emt 0:03:00]} h4 {[%emt 0:01:00]} 49. gxh4 {[%emt 0:04:30]} Kxf4 {[%emt 0:00:00]} 50. Rf1+ {[%emt 0:00:30]} Kxe5 {[%emt 0:00:00]} 51. Kc1 {[%emt 0:00:30]} f5 {[%emt 0:00:30]} 52. h5 {[%emt 0:00:00]} f4 {[%emt 0:00:00]} 53. Re1+ {[%emt 0:02:00]} Kf5 {[%emt 0:00:00]} 54. Rf1 {[%emt 0:00:30]} e5 {[%emt 0:00:00]} 0-1

[Event "TUR-chT Superleague 2018"]
[Site "Ankara"]
[Date "2018.08.01"]
[Round "8"]
[White "Triapishko, Alexandr"]
[Black "Mchedlishvili, Mikheil"]
[Result "1/2-1/2"]
[ECO "B80"]
[WhiteElo "2502"]
[BlackElo "2608"]
[Annotator "ChessBase"]
[PlyCount "61"]
[EventDate "2018.07.25"]
[EventType "team-tourn"]
[EventCountry "TUR"]
[SourceTitle "playchess.com"]
[Source "ChessBase"]
[SourceQuality "1"]
[TimeControl "40/5400+30:1800+30"]

1. e4 c5 2. Nf3 e6 3. d4 cxd4 4. Nxd4 Nc6 5. Nc3 Qc7 6. g3 a6 7. Bg2 Nf6 8. O-O d6 9. Nxc6 bxc6 10. Na4 Rb8 11. c4 c5 12. Qe2 Be7 13. b3 Nd7 14. Bb2 O-O 15. f4 Bb7 16. Rae1 Bc6 17. Bc3 Rfe8 18. Nb2 Qb7 19. Nd3 f5 20. Bf3 fxe4 21. Bxe4 Bxe4 22. Qxe4 Qxe4 23. Rxe4 Bf6 24. Bxf6 Nxf6 25. Re2 Kf7 26. Kg2 {[%emt 1:31:37]} g6 {[%emt 1:25:18]} 27. Ne5+ {[%emt 0:04:09]} Kg7 {[%emt 0:00:08]} 28. Nd3 {[%emt 0:01:06]} Kf7 {[%emt 0:00:30]} 29. Ne5+ {[%emt 0:00:30]} Kg7 {[%emt 0:00:30]} 30. Nd3 {[%emt 0:00:30]} Kf7 {[%emt 0:00:30]} 31. Ne5+ {[%emt 0:00:00]} 1/2-1/2

[Event "TUR-chT Superleague 2018"]
[Site "Ankara"]
[Date "2018.08.01"]
[Round "8"]
[White "Asadli, Vugar"]
[Black "Uzumcu, Ahmet Utku"]
[Result "1-0"]
[ECO "A00"]
[WhiteElo "2482"]
[BlackElo "2231"]
[Annotator "ChessBase"]
[PlyCount "111"]
[EventDate "2018.07.25"]
[EventType "team-tourn"]
[EventCountry "TUR"]
[SourceTitle "playchess.com"]
[Source "ChessBase"]
[SourceQuality "1"]
[TimeControl "40/5400+30:1800+30"]

1. g3 Nf6 2. Bg2 d5 3. d3 g6 4. b3 Bg7 5. Bb2 O-O 6. Nf3 c5 7. c4 d4 8. b4 Nc6 9. b5 Nb8 10. O-O Qc7 11. e3 e5 12. exd4 exd4 13. Bc1 Nh5 14. Nbd2 h6 15. Nb3 Be6 16. Re1 Nd7 17. Rxe6 fxe6 18. Nh4 Nhf6 19. Nxg6 Rfe8 20. Qf3 Rab8 21. Bd2 Nf8 22. Nf4 b6 23. Nh5 Nxh5 24. Qxh5 Qf7 25. Qe2 Kh8 26. Bc1 Rbd8 27. Nd2 Nh7 28. a4 Nf6 29. a5 Re7 30. Bc6 Rf8 31. Ne4 Nxe4 32. Bxe4 Qf6 33. Ra2 e5 34. h4 Qf7 35. g4 Rd8 36. g5 Rd6 37. axb6 Rxb6 38. Qg4 Qe6 39. Bf5 Qf7 40. g6 Qf8 41. Be4 Rc7 42. Qh5 Rd6 43. Kg2 Kg8 44. Kg3 Rcd7 45. f3 {[%emt 1:24:30]} Rc7 {[%emt 2:03:10]} 46. f4 {[%emt 0:08:30]} exf4+ {[%emt 0:06:21]} 47. Bxf4 {[%emt 0:00:30]} Rcd7 {[%emt 0:00:30]} 48. Bd5+ {[%emt 0:00:30]} Kh8 {[%emt 0:01:16]} 49. Re2 {[%emt 0:03:30]} Rf6 {[%emt 0:08:44]} 50. Bxh6 {[%emt 0:02:30]} Bxh6 {[%emt 0:02:09]} 51. Re8 {[%emt 0:00:30]} Rf3+ {[%emt 0:02:46]} 52. Bxf3 {[%emt 0:00:00]} Qxe8 {[%emt 0:00:05]} 53. Qxh6+ {[%emt 0:00:00]} Kg8 {[%emt 0:00:30]} 54. Bd5+ {[%emt 0:00:30]} Rxd5 {[%emt 0:00:30]} 55. Qh7+ {[%emt 0:00:00]} Kf8 {[%emt 0:00:00]} 56. g7+ {[%emt 0:00:00]} 1-0

[Event "TUR-chT Superleague 2018"]
[Site "Ankara"]
[Date "2018.08.01"]
[Round "8"]
[White "Yilmazyerli, Mert"]
[Black "Erdogan, Anil Berk"]
[Result "1/2-1/2"]
[ECO "A43"]
[WhiteElo "2458"]
[BlackElo "2055"]
[Annotator "ChessBase"]
[PlyCount "121"]
[EventDate "2018.07.25"]
[EventType "team-tourn"]
[EventCountry "TUR"]
[SourceTitle "playchess.com"]
[Source "ChessBase"]
[SourceQuality "1"]
[TimeControl "40/5400+30:1800+30"]

1. d4 Nf6 2. Nf3 c5 3. d5 e6 4. Nc3 exd5 5. Nxd5 Nxd5 6. Qxd5 Be7 7. e4 O-O 8. Bc4 d6 9. O-O Nd7 10. Bb3 Qc7 11. c3 Ne5 12. Nxe5 dxe5 13. Qd3 Rd8 14. Qe2 Qb6 15. Bd5 Be6 16. c4 Bxd5 17. cxd5 Rac8 18. Qc4 Qb4 19. b3 b5 20. Qxb4 cxb4 21. Bb2 Bd6 22. Rfc1 Kf8 23. Rxc8 Rxc8 24. Rc1 Rxc1+ 25. Bxc1 f6 26. Be3 a6 27. g3 Kf7 28. Kg2 g5 29. h3 Kg6 30. f4 gxf4 31. gxf4 exf4 32. Bd2 f5 33. e5 Bxe5 34. Bxb4 Kf6 35. Kf3 Bb2 36. Bd6 Be5 37. Bf8 Kg6 38. Be7 h6 39. Bf8 h5 40. Be7 Kf7 {[%emt 1:20:00]} 41. Bg5 {[%emt 1:38:30]} Bd6 {[%emt 0:38:30]} 42. Bxf4 {[%emt 0:01:30]} Ke7 {[%emt 0:00:00]} 43. Bxd6+ {[%emt 0:05:30]} Kxd6 {[%emt 0:00:00]} 44. Kf4 {[%emt 0:00:00]} Kxd5 {[%emt 0:05:41]} 45. Kxf5 {[%emt 0:02:00]} a5 {[%emt 0:00:24]} 46. Kg5 {[%emt 0:00:00]} a4 {[%emt 0:00:24]} 47. Kxh5 {[%emt 0:07:00]} Kc5 {[%emt 0:01:37]} 48. h4 {[%emt 0:04:30]} Kb4 {[%emt 0:00:03]} 49. Kg4 {[%emt 0:07:51]} Ka3 {[%emt 0:00:11]} 50. h5 {[%emt 0:02:21]} Kxa2 {[%emt 0:00:02]} 51. bxa4 {[%emt 0:00:48]} bxa4 {[%emt 0:00:30]} 52. h6 {[%emt 0:00:30]} a3 {[%emt 0:00:30]} 53. h7 {[%emt 0:00:30]} Kb1 {[%emt 0:00:00]} 54. h8=Q {[%emt 0:00:00]} a2 {[%emt 0:00:00]} 55. Qb8+ {[%emt 0:00:00]} Kc1 {[%emt 0:00:00]} 56. Qe5 {[%emt 0:00:14]} Kb1 {[%emt 0:00:08]} 57. Qe1+ {[%emt 0:00:00]} Kb2 {[%emt 0:00:00]} 58. Qb4+ {[%emt 0:00:02]} Kc1 {[%emt 0:01:00]} 59. Qc3+ {[%emt 0:00:52]} Kb1 {[%emt 0:00:00]} 60. Qb3+ {[%emt 0:00:30]} Ka1 {[%emt 0:00:00]} 61. Kf3 {[%emt 0:00:00]} 1/2-1/2

[Event "TUR-chT Superleague 2018"]
[Site "Ankara"]
[Date "2018.08.01"]
[Round "8"]
[White "Szczepkowska, Karina"]
[Black "Unuk, Laura"]
[Result "1/2-1/2"]
[ECO "D38"]
[WhiteElo "2404"]
[BlackElo "2340"]
[Annotator "NA"]
[PlyCount "196"]
[EventDate "2018.07.25"]
[EventType "team-tourn"]
[EventCountry "TUR"]
[SourceTitle "playchess.com"]
[Source "ChessBase"]
[SourceQuality "1"]
[TimeControl "40/5400+30:1800+30"]

1. d4 Nf6 2. c4 e6 3. Nf3 d5 4. Nc3 Bb4 5. Qa4+ Nc6 6. e3 O-O 7. Bd2 dxc4 8. Bxc4 a6 9. O-O Bd6 10. Qc2 e5 11. d5 Nb4 12. Qb1 c6 13. dxc6 Nxc6 14. h3 b5 15. Be2 Qe7 16. Ng5 g6 17. Bf3 Bf5 18. Nge4 Rac8 19. a3 Bb8 20. Rd1 Kg7 21. Qd3 Rfd8 22. Qe2 Ne8 23. b4 Be6 24. Nc5 Bc4 25. Qe1 a5 26. Bxc6 Rxc6 27. e4 axb4 28. axb4 f5 29. Bc1 Rxd1 30. Qxd1 Rd6 31. Qe1 f4 32. Nd5 Bxd5 33. exd5 Rxd5 34. Bxf4 Nf6 35. Bg5 Qd6 36. Bxf6+ Qxf6 37. Qe4 Qd6 38. Ra6 Rd1+ 39. Kh2 Qe7 40. Rb6 Bc7 41. Rb7 Rd6 42. Ra7 Kg8 43. Qb7 Qf7 44. Ne4 Rd7 45. Qxb5 Rd4 46. Qc6 Rc4 47. Qb7 Rc2 48. Qd5 Qxd5 49. Nf6+ Kf8 50. Nxd5 Bd8 51. Kg3 h5 52. Kf3 Ke8 53. Rg7 Rd2 54. Ne3 g5 55. b5 Rb2 56. Rb7 e4+ 57. Kxe4 Rxf2 58. Rh7 Rb2 59. Rb7 Be7 60. b6 Bc5 61. Rb8+ Kd7 62. Nc4 Rxg2 63. b7 Kc7 64. Rc8+ Kxb7 65. Rxc5 Rg3 66. Ne3 h4 67. Rb5+ Kc6 68. Rf5 Rxh3 69. Rxg5 Rh1 70. Rg6+ Kc5 71. Rh6 h3 72. Ng4 h2 73. Nxh2 Kb5 74. Rh5+ Kc6 75. Kf3 Kd6 76. Kg2 Rd1 77. Nf3 Rd5 78. Rh6+ Kc5 79. Kf2 Rd6 80. Rh8 Re6 81. Nd2 Kd4 82. Rd8+ Ke5 83. Kf3 Rc6 84. Ke3 Rc3+ 85. Ke2 Kf4 86. Rf8+ Ke5 87. Nf3+ Ke4 88. Re8+ Kf4 89. Nd4 Ra3 90. Kd2 Rh3 91. Ne2+ Kf5 {[%emt 2:42:41]} 92. Nd4+ {[%emt 2:37:16]} Kf4 {[%emt 0:00:30]} 93. Ne6+ {[%emt 0:00:30]} Kf5 {[%emt 0:00:30]} 94. Ke2 {[%emt 0:00:30]} Ra3 {[%emt 0:00:30]} 95. Nd4+ {[%emt 0:00:30]} Kf4 {[%emt 0:00:30]} 96. Kf2 {[%emt 0:00:30]} Rd3 {[%emt 0:00:30]} 97. Ne2+ {[%emt 0:00:13]} Kf5 {[%emt 0:00:31]} 98. Rf8+ {[%emt 0:00:41]} Ke5 {[%emt 0:00:20]} 1/2-1/2

[Event "TUR-chT Superleague 2018"]
[Site "Ankara"]
[Date "2018.08.01"]
[Round "8"]
[White "Yurtseven, Melih"]
[Black "Sanal, Vahap"]
[Result "1/2-1/2"]
[ECO "E17"]
[WhiteElo "2404"]
[BlackElo "2518"]
[Annotator "ChessBase"]
[PlyCount "120"]
[EventDate "2018.07.25"]
[EventType "team-tourn"]
[EventCountry "TUR"]
[SourceTitle "playchess.com"]
[Source "ChessBase"]
[SourceQuality "1"]
[TimeControl "40/5400+30:1800+30"]

1. d4 Nf6 2. Nf3 e6 3. g3 b6 4. Bg2 Bb7 5. c4 Be7 6. O-O O-O 7. d5 exd5 8. Nh4 c6 9. cxd5 Nxd5 10. Nf5 Nc7 11. e4 d5 12. Nc3 Bf6 13. exd5 Nxd5 14. Nxd5 cxd5 15. Ne3 Nd7 16. Nxd5 Bxd5 17. Qxd5 Rc8 18. Bh3 Nc5 19. Qf3 Ne6 20. Bxe6 fxe6 21. Qe2 Qd5 22. Be3 Qc4 23. Rfe1 Rfd8 24. Qxc4 Rxc4 25. Re2 Kf7 26. Rae1 h5 27. h4 Rd5 28. Kg2 Rc6 29. Rc1 Rxc1 30. Bxc1 b5 31. Be3 a5 32. b3 Bc3 33. Kf3 Ke7 34. Rc2 b4 35. Bc1 Kd6 36. Bb2 Bxb2 37. Rxb2 Rd1 38. Kf4 Rd5 39. Rc2 g6 40. Ke4 Re5+ 41. Kf4 Rd5 42. Ke4 g5 43. hxg5 Rxg5 44. Rd2+ Ke7 45. Rc2 Kd6 46. Rd2+ Ke7 47. Rc2 Kf6 {[%emt 1:28:30]} 48. Kf4 {[%emt 2:00:00]} Re5 {[%emt 0:02:30]} 49. g4 {[%emt 0:06:02]} h4 {[%emt 0:05:30]} 50. f3 {[%emt 0:04:51]} Re1 {[%emt 0:01:30]} 51. g5+ {[%emt 0:01:08]} Kg6 {[%emt 0:00:00]} 52. Rc5 {[%emt 0:01:32]} Kh5 {[%emt 0:16:00]} 53. Rc8 {[%emt 0:02:59]} Re2 {[%emt 0:00:30]} 54. Rh8+ {[%emt 0:02:04]} Kg6 {[%emt 0:00:30]} 55. Rh6+ {[%emt 0:00:04]} Kf7 {[%emt 0:00:00]} 56. Rxh4 {[%emt 0:00:49]} Rxa2 {[%emt 0:00:00]} 57. Rh7+ {[%emt 0:00:30]} Kg6 {[%emt 0:00:30]} 58. Rh6+ {[%emt 0:00:46]} Kf7 {[%emt 0:00:00]} 59. Rh7+ {[%emt 0:00:18]} Kg6 {[%emt 0:00:00]} 60. Rh6+ {[%emt 0:01:42]} Kf7 {[%emt 0:00:00]} 1/2-1/2

[Event "TUR-chT Superleague 2018"]
[Site "Ankara"]
[Date "2018.08.01"]
[Round "8"]
[White "Soysal, Serkan"]
[Black "Gok, Fatih"]
[Result "1-0"]
[ECO "A30"]
[WhiteElo "2402"]
[BlackElo "1952"]
[Annotator "NA"]
[PlyCount "83"]
[EventDate "2018.07.25"]
[EventType "team-tourn"]
[EventCountry "TUR"]
[SourceTitle "playchess.com"]
[Source "ChessBase"]
[SourceQuality "1"]
[TimeControl "40/5400+30:1800+30"]

1. Nf3 Nf6 2. c4 e6 3. g3 b6 4. Bg2 Bb7 5. O-O c5 6. d4 cxd4 7. Qxd4 Be7 8. Nc3 O-O 9. Rd1 a6 10. Bf4 Nc6 11. Qd2 Na5 12. b3 d5 13. Qb2 Qe8 14. Be3 Bd8 15. cxd5 Nxd5 16. Nxd5 Bxd5 17. Bd4 f6 18. Rac1 Bb7 19. Bc3 e5 20. b4 Nc6 21. Nd2 b5 22. Ne4 Be7 23. Qb3+ Kh8 24. Nd6 Bxd6 25. Rxd6 Nd4 26. Bxd4 Bxg2 27. Kxg2 exd4 28. Qd3 Rd8 29. Qxd4 Qe7 30. Rd1 Rc8 31. Qd3 h6 32. a3 Rfe8 {[%emt 1:45:34]} 33. Rd2 {[%emt 1:41:20]} Qc7 {[%emt 0:00:30]} 34. Qf3 {[%emt 0:00:30]} a5 {[%emt 0:00:30]} 35. Rd7 {[%emt 0:00:49]} Qc1 {[%emt 0:00:38]} 36. bxa5 {[%emt 0:00:30]} Ra8 {[%emt 0:00:30]} 37. Qb7 {[%emt 0:00:30]} Rg8 {[%emt 0:00:00]} 38. Rxg7 {[%emt 0:01:35]} Qb1 {[%emt 0:00:40]} 39. Rd3 {[%emt 0:00:45]} Rxg7 {[%emt 0:00:51]} 40. Qxa8+ {[%emt 0:00:00]} Rg8 {[%emt 0:00:00]} 41. Qf3 {[%emt 0:02:31]} Qb2 {[%emt 0:04:17]} 42. a6 {[%emt 0:00:00]} 1-0

[Event "TUR-chT Superleague 2018"]
[Site "Ankara"]
[Date "2018.08.01"]
[Round "8"]
[White "Kerigan, Demre"]
[Black "Demircioglu, Emre"]
[Result "0-1"]
[ECO "C42"]
[WhiteElo "2366"]
[BlackElo "2244"]
[Annotator "NA"]
[PlyCount "76"]
[EventDate "2018.07.25"]
[EventType "team-tourn"]
[EventCountry "TUR"]
[SourceTitle "playchess.com"]
[Source "ChessBase"]
[SourceQuality "1"]
[TimeControl "40/5400+30:1800+30"]

1. e4 e5 2. Nf3 Nf6 3. Nxe5 d6 4. Nc4 Nxe4 5. d4 Be7 6. Bd3 Nf6 7. O-O O-O 8. Ne3 g6 9. Nc3 d5 10. Qf3 c6 11. Ne2 Na6 12. c3 Nc7 13. Ng3 Re8 14. Qd1 Bf8 15. f4 c5 16. f5 cxd4 17. cxd4 Bg7 18. Qf3 Bd7 19. a4 b5 20. a5 b4 21. Nc2 b3 22. Nb4 Rb8 23. Bd2 Nb5 24. fxg6 fxg6 25. Nxd5 Nxd5 26. Qf7+ Kh8 27. Qxd5 Be6 28. Qxd8 Rexd8 29. Ne2 Nxd4 30. Nf4 Bf5 31. Bxf5 Nxf5 32. Bc1 Nd4 {[%emt 1:41:13]} 33. g3 {[%emt 1:45:25]} Rbc8 {[%emt 0:00:30]} 34. Kg2 {[%emt 0:00:30]} Rc2+ {[%emt 0:00:30]} 35. Rf2 {[%emt 0:00:30]} a6 {[%emt 0:01:18]} 36. Be3 {[%emt 0:00:30]} Nf5 {[%emt 0:00:30]} 37. Re1 {[%emt 0:00:38]} Nxe3+ {[%emt 0:01:48]} 38. Rxe3 {[%emt 0:00:30]} Rxf2+ {[%emt 0:00:00]} 0-1